bitfinex/quotes_BTCUSD_20240605
["timestamp","ask_amount","ask_price","bid_price","bid_amount"]
[1717560365537,1.56020108,70899.0,70898.0,0.04286]
[1717560366332,1.66563605,70899.0,70898.0,0.04286]
[1717560367336,1.49330108,70899.0,70898.0,0.04286]
[1717560367503,1.56020108,70899.0,70898.0,0.04286]
[1717560371136,1.66595789,70899.0,70898.0,0.04286]
[1717560372988,1.56020108,70899.0,70898.0,0.04286]
[1717560375106,1.58020108,70899.0,70898.0,0.04286]
[1717560375308,1.68595829,70899.0,70898.0,0.04286]
[1717560375482,1.58020108,70899.0,70898.0,0.04286]
[1717560377433,1.56020108,70899.0,70898.0,0.04286]
[1717560377813,1.58020108,70899.0,70898.0,0.04286]
[1717560378217,1.56962024,70899.0,70898.0,0.04286]
[1717560378421,1.58025742,70899.0,70898.0,0.04286]
[1717560378944,1.68601571,70899.0,70898.0,0.04286]
[1717560380899,1.58025742,70899.0,70898.0,0.04286]
[1717560382082,1.66602962,70899.0,70898.0,0.04286]
[1717560382668,1.56025742,70899.0,70898.0,0.04286]
[1717560382871,1.66603032,70899.0,70898.0,0.04286]
[1717560383093,1.59913032,70899.0,70898.0,0.04286]
[1717560383295,1.66603032,70899.0,70898.0,0.04286]
[1717560383452,1.5754258,70899.0,70898.0,0.04286]
[1717560384209,1.5954258,70899.0,70898.0,0.04286]
[1717560384516,1.56025862,70899.0,70898.0,0.04286]
[1717560384756,1.58025862,70899.0,70898.0,0.04286]
[1717560385581,1.68603111,70899.0,70898.0,0.04286]
[1717560387008,1.58025862,70899.0,70898.0,0.04286]
[1717560387913,1.68603705,70899.0,70898.0,0.04286]
[1717560388120,1.58025862,70899.0,70898.0,0.04286]
[1717560389915,1.68603875,70899.0,70898.0,0.04286]
[1717560390174,1.58025862,70899.0,70898.0,0.04286]
[1717560390749,1.68603706,70899.0,70898.0,0.04286]
[1717560391364,1.58025862,70899.0,70898.0,0.04286]
[1717560392321,1.56962144,70899.0,70898.0,0.04286]
[1717560392494,1.68603071,70899.0,70898.0,0.04286]
[1717560392706,1.58024852,70899.0,70898.0,0.04286]
[1717560394936,1.68603198,70899.0,70898.0,0.04286]
[1717560395144,1.68602886,70899.0,70898.0,0.04286]
[1717560395360,1.58024755,70899.0,70898.0,0.04286]
[1717560395794,2.02524755,70899.0,70898.0,0.04286]
[1717560396034,2.06412965,70899.0,70898.0,0.04286]
[1717560399591,2.06412965,70899.0,70898.0,0.02035074]
[1717560399800,2.16412965,70899.0,70898.0,0.02035074]
[1717560401002,2.09722965,70899.0,70898.0,0.02035074]
[1717560401207,1.96412965,70899.0,70898.0,0.02035074]
[1717560403101,1.88232965,70899.0,70898.0,0.02035074]
[1717560403898,1.71912965,70899.0,70898.0,0.02035074]
[1717560404406,1.66962144,70899.0,70898.0,0.02035074]
[1717560404545,1.7203054,70899.0,70898.0,0.02035074]
[1717560406780,1.9203054,70899.0,70898.0,0.02035074]
[1717560407155,1.7203054,70899.0,70898.0,0.02035074]
[1717560410370,1.7203054,70899.0,70898.0,1e-08]
[1717560410371,2.1620054,70899.0,70898.0,1e-08]
[1717560413456,2.1620054,70899.0,70891.0,0.002]
[1717560413457,1.307416,70892.0,70891.0,0.002]
[1717560413687,1.72772653,70892.0,70891.0,0.002]
[1717560414050,1.66240652,70892.0,70891.0,0.002]
[1717560415398,1.68840652,70892.0,70891.0,0.002]
[1717560415731,1.67640652,70892.0,70891.0,0.002]
[1717560416253,1.69040652,70892.0,70891.0,0.002]
[1717560416453,2.12880652,70892.0,70891.0,0.002]
[1717560417654,2.02880652,70892.0,70891.0,0.002]
[1717560417862,2.12880652,70892.0,70891.0,0.002]
[1717560418085,2.11480652,70892.0,70891.0,0.002]
[1717560418307,2.10080652,70892.0,70891.0,0.002]
[1717560418524,2.12880652,70892.0,70891.0,0.002]
[1717560418990,2.10080652,70892.0,70891.0,0.002]
[1717560419224,2.12880652,70892.0,70891.0,0.002]
[1717560419647,2.08836245,70892.0,70891.0,0.002]
[1717560420051,1.107514,70885.0,70884.0,0.00948199]
[1717560420251,1.51601794,70885.0,70884.0,0.00948199]
[1717560420513,1.45274686,70885.0,70884.0,0.00948199]
[1717560421532,1.51615605,70885.0,70884.0,0.00948199]
[1717560421771,1.53015605,70885.0,70884.0,0.00948199]
[1717560422297,1.54415605,70885.0,70884.0,0.00948199]
[1717560423633,1.48074686,70885.0,70884.0,0.00948199]
[1717560423850,1.63473758,70885.0,70884.0,0.00948199]
[1717560424059,1.63430746,70885.0,70884.0,0.00948199]
[1717560424785,1.83430746,70885.0,70884.0,0.00948199]
[1717560425462,1.63430746,70885.0,70884.0,0.00948199]
[1717560426332,1.54976305,70885.0,70884.0,0.00948199]
[1717560427273,1.54976305,70885.0,70871.0,0.0814]
[1717560427274,0.11956988,70872.0,70871.0,0.0814]
[1717560427504,0.80733955,70872.0,70871.0,0.0814]
[1717560427742,1.42949574,70872.0,70871.0,0.0814]
[1717560427974,1.45249574,70872.0,70871.0,0.0814]
[1717560428405,1.02772786,70872.0,70871.0,0.2378]
[1717560428654,0.96082786,70872.0,70871.0,0.2378]
[1717560428878,0.97482786,70872.0,70871.0,0.23823012]
[1717560429103,1.03081393,70872.0,70871.0,0.23823012]
[1717560429347,1.04481393,70872.0,70871.0,0.2378]
[1717560429748,1.05581393,70872.0,70871.0,0.2378]
[1717560430636,1.03081393,70872.0,70871.0,0.2378]
[1717560430830,1.01681393,70872.0,70871.0,0.2378]
[1717560431034,0.94991393,70872.0,70871.0,0.23823012]
[1717560431261,1.02881393,70872.0,70871.0,0.23823012]
[1717560431724,1.01681393,70872.0,70871.0,0.2378]
[1717560432051,1.04481393,70872.0,70871.0,0.2378]
[1717560432481,1.01681393,70872.0,70871.0,0.2378]
[1717560432664,1.02781393,70872.0,70871.0,0.2378]
[1717560432865,1.03981393,70872.0,70871.0,0.2378]
[1717560436184,1.03981393,70872.0,70871.0,0.23823012]
[1717560436538,0.30851793,70872.0,70871.0,0.23823012]
[1717560436923,0.37541793,70872.0,70871.0,0.3845927]
[1717560440175,0.37541793,70872.0,70871.0,0.4045927]
[1717560440597,0.16741893,70872.0,70871.0,0.4045927]
[1717560440796,0.1,70881.0,70871.0,0.4045927]
[1717560440797,0.10555633,70896.0,70889.0,0.00043012]
[1717560441001,0.21131893,70890.0,70889.0,0.38327354]
[1717560441202,0.35238193,70890.0,70889.0,0.38327354]
[1717560441455,0.35238193,70890.0,70889.0,0.38325167]
[1717560442446,0.14441893,70890.0,70889.0,0.40325167]
[1717560442657,0.21131893,70890.0,70889.0,0.40324732]
[1717560442827,0.14441893,70890.0,70889.0,0.40324732]
[1717560443252,0.35238193,70890.0,70889.0,0.38324732]
[1717560443475,0.21131893,70890.0,70889.0,0.38324732]
[1717560443669,0.21931893,70890.0,70889.0,0.38324732]
[1717560443876,0.22631893,70890.0,70889.0,0.38424732]
[1717560444079,0.21831893,70890.0,70889.0,0.38424732]
[1717560444293,0.21131893,70890.0,70889.0,0.38324732]
[1717560444724,0.21931893,70890.0,70889.0,0.38324732]
[1717560447750,0.008,70890.0,70889.0,0.4032361]
[1717560453875,0.008,70890.0,70889.0,0.7443011]
[1717560454853,0.004,70890.0,70889.0,0.7443011]
[1717560455024,0.141033,70906.0,70905.0,0.00043012]
[1717560455277,0.28545193,70906.0,70905.0,0.3817361]
[1717560456627,0.14441893,70906.0,70905.0,0.4017361]
[1717560457038,0.14941893,70906.0,70905.0,0.4017361]
[1717560457780,0.15341893,70906.0,70905.0,0.4017361]
[1717560459637,0.15341893,70906.0,70905.0,0.3817361]
[1717560460241,0.15341893,70906.0,70905.0,0.4017361]
[1717560462274,0.009,70906.0,70905.0,0.4017361]
[1717560462482,0.009,70906.0,70905.0,0.5427691]
[1717560463673,0.005,70906.0,70905.0,0.5427691]
[1717560463872,0.00086,70910.0,70909.0,0.02043012]
[1717560464103,0.00086,70910.0,70909.0,0.4015361]
[1717560465218,0.00486,70910.0,70909.0,0.4015361]
[1717560465735,0.00486,70910.0,70909.0,0.5425611]
[1717560466182,0.00986,70910.0,70909.0,0.5425611]
[1717560467507,0.00986,70910.0,70909.0,0.54250279]
[1717560468108,0.00986,70910.0,70909.0,0.40147779]
[1717560468275,0.36220193,70910.0,70909.0,0.14667779]
[1717560471483,0.29530193,70910.0,70909.0,0.14667779]
[1717560471726,0.36220193,70910.0,70909.0,0.14667779]
[1717560473149,0.90431881,70910.0,70909.0,0.14624767]
[1717560473352,0.88474893,70910.0,70909.0,0.14624767]
[1717560473756,1.26679593,70910.0,70909.0,0.14624767]
[1717560473961,1.28136581,70910.0,70909.0,0.14624767]
[1717560474166,1.40436581,70910.0,70909.0,0.14624767]
[1717560474732,1.40036581,70910.0,70909.0,0.14624767]
[1717560474943,1.40936581,70910.0,70909.0,0.14624767]
[1717560475151,1.40036581,70910.0,70909.0,0.14624767]
[1717560475506,1.42236581,70910.0,70909.0,0.14724767]
[1717560475928,1.41436581,70910.0,70909.0,0.14624767]
[1717560476306,1.42836581,70910.0,70909.0,0.14724767]
[1717560478481,1.42836581,70910.0,70909.0,0.14729556]
[1717560483078,1.40879593,70910.0,70909.0,0.14729556]
[1717560483314,1.04529593,70910.0,70909.0,0.14729556]
[1717560484852,1.04529593,70910.0,70909.0,0.14772568]
[1717560485326,1.04529593,70910.0,70909.0,0.14729556]
[1717560486649,0.76324893,70910.0,70909.0,0.14729556]
[1717560487078,0.76324893,70910.0,70909.0,0.14772568]
[1717560487930,0.48120193,70910.0,70909.0,0.14772568]
[1717560488134,0.48120193,70910.0,70909.0,0.38842568]
[1717560489956,0.46720193,70910.0,70909.0,0.38742568]
[1717560490396,0.45320193,70910.0,70909.0,0.38742568]
[1717560490824,0.45620193,70910.0,70909.0,0.38742568]
[1717560491256,0.45920193,70910.0,70909.0,0.38742568]
[1717560493938,0.45920193,70910.0,70909.0,0.38699556]
[1717560494139,0.45920193,70910.0,70909.0,0.2407]
[1717560494353,0.45920193,70910.0,70909.0,0.3869693]
[1717560494781,0.74124893,70910.0,70909.0,0.3869693]
[1717560494985,1.29036581,70910.0,70909.0,0.1462693]
[1717560495677,1.27079593,70910.0,70909.0,0.1462693]
[1717560496760,1.39036581,70910.0,70909.0,0.1462693]
[1717560496938,1.70557423,70910.0,70909.0,0.1462693]
[1717560497363,0.141059,70892.0,70891.0,0.07723012]
[1717560497568,0.35237793,70892.0,70891.0,0.07723012]
[1717560498658,0.35337793,70892.0,70891.0,0.07723012]
[1717560498863,0.35437793,70892.0,70891.0,0.07723012]
[1717560499074,0.35337793,70892.0,70891.0,0.07723012]
[1717560499444,0.35437793,70892.0,70891.0,0.07723012]
[1717560499785,0.141067,70888.0,70887.0,0.00043012]
[1717560499992,0.35238593,70888.0,70887.0,0.00043012]
[1717560501049,0.35238593,70888.0,70887.0,0.00143012]
[1717560506525,0.28548593,70888.0,70887.0,0.00143012]
[1717560506728,0.35238593,70888.0,70887.0,0.00143012]
[1717560510819,0.35324593,70888.0,70887.0,0.00143012]
[1717560511731,0.63538093,70888.0,70887.0,0.001]
[1717560512622,0.91751593,70888.0,70887.0,0.001]
[1717560513000,0.94051593,70888.0,70887.0,0.001]
[1717560513404,0.95051593,70888.0,70887.0,0.001]
[1717560513587,0.141087,70878.0,70877.0,0.0788]
[1717560513788,0.35240593,70878.0,70877.0,0.0788]
[1717560514905,0.35340593,70878.0,70877.0,0.07923012]
[1717560515750,0.35340593,70878.0,70877.0,0.08323012]
[1717560520417,0.28650593,70878.0,70877.0,0.08323012]
[1717560520592,0.35340593,70878.0,70877.0,0.08323012]
[1717560521005,0.28650593,70878.0,70877.0,0.08323012]
[1717560521193,0.35340593,70878.0,70877.0,0.08323012]
[1717560522348,0.28650593,70878.0,70877.0,0.08323012]
[1717560522542,0.35340593,70878.0,70877.0,0.08323012]
[1717560526037,0.28650593,70878.0,70877.0,0.08323012]
[1717560526247,0.35340593,70878.0,70877.0,0.08323012]
[1717560532791,0.35340593,70878.0,70877.0,0.08250655]
[1717560535346,0.35340593,70878.0,70877.0,0.08207643]
[1717560535546,0.35340593,70878.0,70877.0,0.00443012]
[1717560537643,0.35340593,70878.0,70877.0,0.004]
[1717560537791,0.35340593,70878.0,70877.0,0.00443012]
[1717560538005,0.35340593,70878.0,70877.0,0.004]
[1717560538801,0.35340593,70878.0,70877.0,0.00443012]
[1717560539583,0.35340593,70878.0,70877.0,0.004]
[1717560539926,0.63558093,70878.0,70877.0,0.004]
[1717560542424,0.63558093,70878.0,70877.0,0.00443012]
[1717560543818,0.63558093,70878.0,70877.0,0.004]
[1717560545026,0.56868093,70878.0,70877.0,0.00443012]
[1717560545228,0.35340593,70878.0,70877.0,0.00443012]
[1717560545428,0.28650593,70878.0,70877.0,0.00443012]
[1717560545635,0.35340593,70878.0,70877.0,0.00443012]
[1717560546284,0.28650593,70878.0,70877.0,0.26483012]
[1717560546514,0.001,70878.0,70877.0,0.26483012]
[1717560546746,0.001,70878.0,70877.0,0.26577612]
[1717560546955,0.001,70878.0,70877.0,0.33894242]
[1717560547164,0.00186,70878.0,70877.0,0.33894242]
[1717560548426,0.00186,70878.0,70877.0,0.60584242]
[1717560548642,0.00186,70878.0,70877.0,0.78911377]
[1717560548845,0.00186,70878.0,70877.0,0.74693142]
[1717560549664,0.00086,70878.0,70877.0,0.74691002]
[1717560549884,0.00186,70878.0,70877.0,0.74691002]
[1717560550274,0.00186,70878.0,70877.0,0.85228534]
[1717560550478,0.00186,70878.0,70877.0,0.84828534]
[1717560550853,0.00286,70878.0,70877.0,0.85728534]
[1717560551228,0.00286,70878.0,70877.0,0.75191002]
[1717560552212,0.00286,70878.0,70877.0,0.85728534]
[1717560552768,0.00086,70888.0,70887.0,0.51762922]
[1717560552939,0.00086,70888.0,70887.0,0.86931814]
[1717560553116,0.00086,70888.0,70887.0,0.82717412]
[1717560553318,0.00086,70888.0,70887.0,0.86930974]
[1717560553484,0.00086,70888.0,70887.0,0.82717412]
[1717560553890,0.00186,70888.0,70887.0,0.63617412]
[1717560554313,0.00186,70888.0,70887.0,0.67830113]
[1717560555002,0.00186,70888.0,70887.0,0.68330113]
[1717560555240,0.00086,70888.0,70887.0,0.62717412]
[1717560555466,0.00186,70888.0,70887.0,0.63617412]
[1717560555668,0.00286,70888.0,70887.0,0.65017412]
[1717560558092,0.00286,70888.0,70887.0,0.85017412]
[1717560558291,0.00286,70888.0,70887.0,0.65017412]
[1717560558504,0.00286,70888.0,70887.0,0.85017412]
[1717560558920,0.00286,70888.0,70887.0,0.65017412]
[1717560559710,0.00286,70888.0,70887.0,0.85017412]
[1717560560504,0.00286,70888.0,70887.0,0.65017412]
[1717560565789,0.06976,70888.0,70887.0,0.25270512]
[1717560566399,0.06976,70888.0,70887.0,0.17956022]
[1717560566666,0.06976,70888.0,70887.0,0.19956022]
[1717560566859,0.00286,70888.0,70887.0,0.19956022]
[1717560570095,0.00286,70888.0,70887.0,0.36316022]
[1717560571299,0.00286,70888.0,70887.0,0.43630573]
[1717560571518,0.00286,70888.0,70887.0,0.36316022]
[1717560571748,0.00286,70888.0,70887.0,0.4363064]
[1717560572842,0.00286,70888.0,70887.0,0.43630594]
[1717560574040,0.00286,70888.0,70887.0,0.57737494]
[1717560574252,0.00286,70888.0,70887.0,0.66067494]
[1717560579077,0.00286,70888.0,70887.0,0.8606708]
[1717560579278,0.00286,70888.0,70887.0,0.6606708]
[1717560592887,0.2249,70895.0,70894.0,0.02043012]
[1717560593179,0.2249,70895.0,70894.0,0.09357149]
[1717560593385,0.158,70895.0,70894.0,0.13578998]
[1717560594235,0.158,70895.0,70894.0,0.09357149]
[1717560594434,0.158,70895.0,70894.0,0.09957149]
[1717560595028,0.158,70895.0,70894.0,0.10457149]
[1717560595230,0.141036,70904.0,70903.0,0.00043012]
[1717560595434,0.59395493,70904.0,70903.0,0.00043012]
[1717560596463,0.60495493,70904.0,70903.0,0.00043012]
[1717560597853,0.59395493,70904.0,70903.0,0.00043012]
[1717560598327,0.59795493,70904.0,70903.0,0.00043012]
[1717560598862,0.28945493,70904.0,70903.0,0.00043012]
[1717560599050,0.60085493,70904.0,70903.0,0.00043012]
[1717560599872,0.141037,70903.0,70902.0,0.00043012]
[1717560600147,0.141043,70901.0,70898.0,0.00043012]
[1717560600314,0.0669,70899.0,70898.0,0.00043012]
[1717560600461,0.0669,70899.0,70893.0,0.06335468]
[1717560600462,0.368547,70898.0,70897.0,0.00043012]
[1717560600716,0.51296593,70898.0,70897.0,0.00043012]
[1717560602172,0.51296593,70898.0,70897.0,0.00343012]
[1717560603377,0.51296593,70898.0,70897.0,0.00643012]
[1717560604625,0.51296593,70898.0,70897.0,0.006]
[1717560607037,0.51296593,70898.0,70897.0,0.00643012]
[1717560607993,0.28546593,70898.0,70897.0,0.00643012]
[1717560608248,0.35236593,70898.0,70897.0,0.00643012]
[1717560615072,0.28546593,70898.0,70897.0,0.00643012]
[1717560615276,0.35236593,70898.0,70897.0,0.00643012]
[1717560617100,0.42756593,70898.0,70897.0,0.00643012]
[1717560617345,0.42756593,70898.0,70897.0,0.006]
[1717560621891,0.36066593,70898.0,70897.0,0.006]
[1717560622120,0.42756593,70898.0,70897.0,0.006]
[1717560622362,0.42756593,70898.0,70897.0,0.00643012]
[1717560623180,0.42756593,70898.0,70897.0,0.00043012]
[1717560623361,0.42756593,70898.0,70897.0,0.00143012]
[1717560624235,0.42756593,70898.0,70897.0,0.00243012]
[1717560629526,0.42756593,70898.0,70897.0,0.002]
[1717560631320,0.35236593,70898.0,70897.0,0.002]
[1717560631542,1.28052581,70898.0,70897.0,0.002]
[1717560631752,1.68562081,70898.0,70897.0,0.002]
[1717560632159,1.93571105,70898.0,70897.0,0.002]
[1717560632286,1.72954131,70898.0,70897.0,0.002]
[1717560632495,1.72954117,70898.0,70897.0,0.001]
[1717560632699,1.81250384,70898.0,70897.0,0.001]
[1717560632895,1.83863465,70898.0,70897.0,0.002]
[1717560633328,1.83863465,70898.0,70882.0,0.00043012]
[1717560633329,0.141077,70883.0,70882.0,0.00043012]
[1717560633537,0.28549593,70883.0,70882.0,0.00043012]
[1717560633737,0.56765093,70883.0,70882.0,0.00043012]
[1717560634313,0.28549593,70883.0,70882.0,0.00043012]
[1717560634720,0.28549593,70883.0,70878.0,0.00137612]
[1717560634721,0.1515,70881.0,70878.0,0.00137612]
[1717560634933,0.284785,70879.0,70878.0,0.000946]
[1717560635140,0.42920393,70879.0,70878.0,0.000946]
[1717560635354,0.99354593,70879.0,70878.0,0.000946]
[1717560635565,1.26804593,70879.0,70878.0,0.000946]
[1717560636577,1.27804593,70879.0,70878.0,0.000946]
[1717560636941,1.27804593,70879.0,70878.0,0.003946]
[1717560637184,1.26804593,70879.0,70878.0,0.006946]
[1717560637355,1.26804593,70879.0,70878.0,0.003946]
[1717560637699,1.26804593,70879.0,70878.0,0.005946]
[1717560638607,1.26804593,70879.0,70878.0,0.002946]
[1717560639042,1.26904593,70879.0,70878.0,0.002946]
[1717560639808,1.20214593,70879.0,70878.0,0.002946]
[1717560640046,1.26904593,70879.0,70878.0,0.002946]
[1717560643284,1.28861581,70879.0,70878.0,0.002946]
[1717560643496,1.16904593,70879.0,70878.0,0.002946]
[1717560646243,1.18861581,70879.0,70878.0,0.002946]
[1717560646990,1.16904593,70879.0,70878.0,0.002946]
[1717560647188,0.91774593,70879.0,70878.0,0.002946]
[1717560650293,1.07084593,70879.0,70878.0,0.002946]
[1717560651606,1.09041581,70879.0,70878.0,0.002946]
[1717560651810,0.93731581,70879.0,70878.0,0.002946]
[1717560652758,0.91774593,70879.0,70878.0,0.002946]
[1717560653200,0.92774593,70879.0,70878.0,0.002946]
[1717560653480,0.91774593,70879.0,70878.0,0.002946]
[1717560658111,0.85084593,70879.0,70878.0,0.002946]
[1717560658339,0.91774593,70879.0,70878.0,0.002946]
[1717560660378,0.63557493,70879.0,70878.0,0.00337612]
[1717560660584,0.28650393,70879.0,70878.0,0.24807612]
[1717560660802,0.35340393,70879.0,70878.0,0.24807612]
[1717560663920,0.28650393,70879.0,70878.0,0.24807612]
[1717560664072,0.35340393,70879.0,70878.0,0.24807612]
[1717560667675,0.35340393,70879.0,70878.0,0.247646]
[1717560668932,0.35340393,70879.0,70878.0,0.002946]
[1717560668933,0.91774593,70879.0,70878.0,0.002946]
[1717560669060,1.16671581,70879.0,70878.0,0.002946]
[1717560669263,1.14714593,70879.0,70878.0,0.002946]
[1717560669896,1.16571581,70879.0,70878.0,0.002946]
[1717560670093,1.14614593,70879.0,70878.0,0.002946]
[1717560670299,1.15214593,70879.0,70878.0,0.003946]
[1717560670645,1.17171581,70879.0,70878.0,0.001946]
[1717560670859,1.15214593,70879.0,70878.0,0.001946]
[1717560671217,0.64057493,70879.0,70878.0,0.00237612]
[1717560671421,0.64757493,70879.0,70878.0,0.23377612]
[1717560671623,0.29850393,70879.0,70878.0,0.23377612]
[1717560671941,0.013,70879.0,70878.0,0.25377612]
[1717560672608,0.013,70879.0,70878.0,0.23377612]
[1717560673103,0.007,70879.0,70878.0,0.23277612]
[1717560673324,0.00086,70888.0,70887.0,0.00043012]
[1717560673553,0.28634593,70888.0,70887.0,0.23573012]
[1717560673792,0.35324593,70888.0,70887.0,0.23573012]
[1717560673991,0.28634593,70888.0,70887.0,0.23573012]
[1717560674205,0.35324593,70888.0,70887.0,0.23573012]
[1717560674427,0.28634593,70888.0,70887.0,0.23573012]
[1717560674645,0.35324593,70888.0,70887.0,0.23573012]
[1717560675104,0.28934593,70888.0,70887.0,0.25573012]
[1717560675330,0.35624593,70888.0,70887.0,0.23573012]
[1717560676116,0.35524593,70888.0,70887.0,0.23573012]
[1717560676318,0.35324593,70888.0,70887.0,0.23573012]
[1717560676560,0.35424593,70888.0,70887.0,0.24473012]
[1717560676930,0.35424593,70888.0,70887.0,0.24073012]
[1717560677359,0.35424593,70888.0,70887.0,0.24473012]
[1717560677573,0.21317893,70888.0,70887.0,0.24473012]
[1717560679829,0.21317893,70888.0,70887.0,0.26473012]
[1717560681780,0.14627893,70888.0,70887.0,0.26473012]
[1717560682028,0.21317893,70888.0,70887.0,0.26473012]
[1717560683700,0.21317893,70888.0,70887.0,0.24473012]
[1717560685200,0.00186,70888.0,70887.0,0.26473012]
[1717560700140,0.00186,70888.0,70887.0,0.24473012]
[1717560702939,0.00186,70888.0,70887.0,0.40579912]
[1717560703141,0.00186,70888.0,70887.0,0.60579912]
[1717560704054,0.00186,70888.0,70887.0,0.60179912]
[1717560704262,0.00086,70888.0,70887.0,0.59679912]
[1717560704470,0.00186,70888.0,70887.0,0.60879912]
[1717560704668,0.00286,70888.0,70887.0,0.60679912]
[1717560705100,0.00286,70888.0,70887.0,0.65291173]
[1717560705488,0.00386,70888.0,70887.0,0.66691173]
[1717560705913,0.00386,70888.0,70887.0,0.65291173]
[1717560705914,0.00286,70888.0,70887.0,0.65291173]
[1717560706319,0.00186,70888.0,70887.0,0.65291173]
[1717560706751,0.00186,70888.0,70887.0,0.66691173]
[1717560707523,0.00186,70888.0,70887.0,0.42479912]
[1717560708132,0.00186,70888.0,70887.0,0.66691173]
[1717560708500,0.00186,70888.0,70887.0,0.62479912]
[1717560708696,0.00186,70888.0,70887.0,0.42479912]
[1717560710267,0.00186,70888.0,70887.0,0.46691173]
[1717560710673,0.00186,70888.0,70887.0,0.42479912]
[1717560711802,0.00186,70888.0,70887.0,0.46692412]
[1717560712224,0.00186,70888.0,70887.0,0.42479912]
[1717560712424,0.00186,70888.0,70887.0,0.46692412]
[1717560712743,0.00186,70888.0,70887.0,0.42479912]
[1717560712920,0.00186,70888.0,70887.0,0.42574512]
[1717560713959,0.00186,70888.0,70887.0,0.46787012]
[1717560714443,0.00186,70888.0,70887.0,1.45132805]
[1717560714669,0.0792,70921.0,70909.0,0.31758522]
[1717560714888,0.0792,70921.0,70909.0,0.55328522]
[1717560715099,0.0792,70921.0,70909.0,0.75328522]
[1717560715787,0.157,70922.0,70909.0,0.75328522]
[1717560716127,0.157,70922.0,70909.0,0.82148966]
[1717560716672,0.157,70922.0,70909.0,0.81648966]
[1717560716869,0.157,70922.0,70909.0,0.76728522]
[1717560717218,0.157,70922.0,70909.0,0.58128522]
[1717560718676,0.157,70922.0,70909.0,0.62337091]
[1717560719381,0.157,70922.0,70909.0,0.58128522]
[1717560719773,0.157,70922.0,70909.0,0.78128522]
[1717560720226,0.0669,70920.0,70909.0,0.78128522]
[1717560720879,0.0669,70920.0,70909.0,0.58128522]
[1717560721647,0.157,70922.0,70909.0,1.06333622]
[1717560721863,0.0669,70921.0,70909.0,0.86333622]
[1717560722595,0.157,70922.0,70909.0,1.06333622]
[1717560722797,0.0669,70921.0,70909.0,1.06333622]
[1717560723421,0.0669,70921.0,70909.0,0.86333622]
[1717560724035,0.0669,70920.0,70909.0,1.06333622]
[1717560725369,0.0669,70920.0,70909.0,0.86333622]
[1717560729475,0.00086,70924.0,70909.0,1.34538722]
[1717560729683,0.1505,70923.0,70909.0,1.21228722]
[1717560729883,0.1505,70923.0,70909.0,1.41228722]
[1717560730544,0.00086,70924.0,70909.0,1.41228722]
[1717560731304,0.00086,70924.0,70909.0,1.45437291]
[1717560731509,0.00086,70924.0,70909.0,1.41228722]
[1717560732906,0.00086,70924.0,70909.0,1.45437291]
[1717560733163,0.00086,70924.0,70909.0,1.41228722]
[1717560737617,0.00086,70924.0,70909.0,1.51228722]
[1717560740941,0.00086,70924.0,70909.0,1.55401975]
[1717560740942,0.0791,70920.0,70909.0,1.55401975]
[1717560741142,0.1556,70918.0,70909.0,1.55401975]
[1717560741689,0.1556,70918.0,70909.0,1.51228722]
[1717560741897,0.1556,70918.0,70909.0,1.31228722]
[1717560748424,0.1556,70918.0,70909.0,1.35428137]
[1717560750274,0.1556,70918.0,70909.0,1.31228722]
[1717560751249,0.1556,70918.0,70909.0,1.37527844]
[1717560751447,0.1556,70918.0,70909.0,1.22128347]
[1717560751971,0.1556,70918.0,70909.0,1.15818722]
[1717560752247,0.1556,70918.0,70909.0,1.2212872]
[1717560753494,0.1556,70918.0,70909.0,1.15818722]
[1717560754419,0.1556,70918.0,70909.0,1.24232053]
[1717560755442,0.1556,70918.0,70909.0,1.15818722]
[1717560755818,0.14646,70918.0,70917.0,0.29756922]
[1717560757165,0.14646,70918.0,70917.0,0.30256922]
[1717560757626,0.14646,70918.0,70917.0,0.30756922]
[1717560758520,0.14646,70918.0,70917.0,0.30256922]
[1717560758757,0.14646,70918.0,70917.0,0.30556922]
[1717560759627,0.14646,70918.0,70917.0,0.29756922]
[1717560759817,0.14646,70918.0,70917.0,0.32856922]
[1717560760110,0.14646,70918.0,70917.0,0.30856922]
[1717560760580,0.14646,70918.0,70917.0,0.41373586]
[1717560760763,0.14646,70918.0,70917.0,0.42173586]
[1717560761010,0.14646,70918.0,70917.0,0.41373586]
[1717560761436,0.14646,70918.0,70917.0,0.42573586]
[1717560762089,0.14646,70918.0,70917.0,0.32056922]
[1717560762515,0.14646,70918.0,70917.0,0.40501361]
[1717560764362,0.14646,70918.0,70917.0,0.42573586]
[1717560765636,0.14646,70918.0,70917.0,0.42613189]
[1717560766106,0.14646,70918.0,70917.0,0.40502508]
[1717560766729,0.14646,70918.0,70917.0,0.32056922]
[1717560768338,0.14646,70918.0,70917.0,0.42613189]
[1717560769585,0.14646,70918.0,70917.0,0.34056922]
[1717560770000,0.14646,70918.0,70917.0,0.44613189]
[1717560770998,0.0791,70920.0,70919.0,0.02043012]
[1717560771200,0.0791,70920.0,70919.0,0.10485268]
[1717560771603,0.2342,70923.0,70922.0,0.02043012]
[1717560772064,0.2342,70923.0,70922.0,0.0837392]
[1717560772279,0.2342,70923.0,70922.0,0.02043012]
[1717560772487,0.2342,70923.0,70922.0,0.00043012]
[1717560772913,0.00086,70924.0,70923.0,0.00043012]
[1717560773122,0.00086,70924.0,70923.0,0.08374263]
[1717560773337,0.00086,70924.0,70923.0,0.06374263]
[1717560773561,0.00086,70924.0,70923.0,0.08374771]
[1717560773980,0.00086,70924.0,70923.0,0.02043012]
[1717560774186,0.00086,70924.0,70923.0,0.02606944]
[1717560774601,0.00086,70924.0,70923.0,0.00606944]
[1717560774851,0.00086,70924.0,70923.0,0.01606944]
[1717560775067,0.00086,70924.0,70923.0,0.03606944]
[1717560775279,0.00086,70924.0,70923.0,0.1204929]
[1717560775692,0.00086,70924.0,70923.0,0.1004929]
[1717560775926,0.00086,70924.0,70923.0,0.09485358]
[1717560776138,0.00086,70924.0,70923.0,0.10485358]
[1717560777707,0.00086,70924.0,70923.0,0.12485358]
[1717560779477,0.00086,70924.0,70923.0,0.04043012]
[1717560779935,0.00086,70924.0,70923.0,0.14595945]
[1717560780342,0.00086,70924.0,70923.0,0.22385945]
[1717560780549,0.00086,70924.0,70923.0,0.36485645]
[1717560780955,0.00086,70924.0,70923.0,0.25932712]
[1717560782349,0.00086,70924.0,70923.0,0.16142712]
[1717560782567,0.00086,70924.0,70923.0,0.28696714]
[1717560783794,0.00086,70924.0,70923.0,0.18142712]
[1717560784987,0.00086,70924.0,70923.0,0.28697055]